bitfinex/quotes_ETHUSD_20241119
["timestamp","ask_amount","ask_price","bid_price","bid_amount"]
[1731975067013,0.01,3204.3,3203.9,0.3116]
[1731975067172,3.13081,3204.3,3203.9,0.3116]
[1731975067374,3.12094,3204.2,3203.9,0.3116]
[1731975067762,3.12094,3204.2,3203.7,0.3116]
[1731975068192,3.12109,3204.0,3203.7,0.3116]
[1731975068381,3.13109,3204.0,3203.7,0.3116]
[1731975068588,3.755293,3204.0,3203.7,0.3116]
[1731975068794,3.12119,3203.9,3203.3,4.40557]
[1731975069012,3.12131,3203.8,3203.4,0.3116]
[1731975069389,3.12149,3203.6,3203.4,0.3116]
[1731975069594,3.13131,3203.8,3203.4,0.3116]
[1731975070304,3.13131,3203.8,3203.0,3.12203]
[1731975070305,3.12147,3203.7,3203.2,0.3116]
[1731975070875,0.01,3203.8,3203.2,0.3116]
[1731975071180,3.12102,3204.1,3203.5,0.3116]
[1731975071387,0.01,3203.8,3203.5,0.3116]
[1731975071692,0.01,3204.2,3203.7,0.3116]
[1731975071901,3.12076,3204.4,3203.7,0.3116]
[1731975071902,3.12082,3204.3,3203.9,0.3116]
[1731975072322,3.13082,3204.3,3203.9,0.3116]
[1731975072816,0.01,3204.3,3203.9,0.3116]
[1731975073527,3.12054,3204.6,3203.9,0.3116]
[1731975073528,3.12062,3204.5,3203.9,0.3116]
[1731975073729,0.01,3204.3,3203.9,0.3116]
[1731975074531,2.81928,3204.4,3203.9,0.3116]
[1731975076885,3.12012,3205.0,3204.5,0.3116]
[1731975077021,3.12051,3204.6,3204.5,0.3116]
[1731975077645,7.8211,3204.8,3203.9,0.3116]
[1731975077646,3.12069,3204.5,3203.9,0.3116]
[1731975077868,3.12022,3204.9,3204.4,0.3116]
[1731975078168,3.12061,3204.5,3204.4,0.3116]
[1731975078936,3.12071,3204.4,3203.9,0.3116]
[1731975079125,3.07071,3204.4,3203.9,0.3116]
[1731975079333,3.12082,3204.3,3203.6,3.433]
[1731975079637,3.12108,3204.1,3203.9,0.3116]
[1731975079869,3.12075,3204.4,3203.9,0.3116]
[1731975080550,3.12053,3204.6,3203.9,3.43273]
[1731975080758,3.12053,3204.6,3203.8,3.12124]
[1731975080759,3.12053,3204.6,3204.1,0.3116]
[1731975080939,4.908212,3205.0,3204.1,0.3116]
[1731975081138,3.12071,3204.4,3204.1,0.3116]
[1731975081471,3.12061,3204.6,3204.1,0.3116]
[1731975081858,3.12061,3204.5,3204.0,0.3116]
[1731975082467,0.62332635,3204.8,3204.2,1.8168]
[1731975082667,3.74364635,3204.8,3204.4,0.3116]
[1731975082835,3.12032,3204.8,3204.4,0.3116]
[1731975083242,3.12025,3204.9,3204.4,0.3116]
[1731975083243,3.12043,3204.7,3204.4,0.3116]
[1731975083676,3.12043,3204.7,3204.3,0.3116]
[1731975083832,3.12063,3204.5,3204.3,0.3116]
[1731975084033,3.1207,3204.4,3204.3,0.3116]
[1731975084350,3.12064,3204.5,3204.3,0.3116]
[1731975084665,3.12064,3204.5,3204.2,1.5052]
[1731975084869,3.12064,3204.5,3204.3,0.3116]
[1731975085178,6.24093,3204.7,3204.3,0.3116]
[1731975085397,3.12052,3204.6,3204.3,0.3116]
[1731975086503,3.12033,3204.8,3204.3,0.3116]
[1731975086720,3.12052,3204.6,3204.3,0.3116]
[1731975087254,6.24074,3204.8,3204.3,0.3116]
[1731975087564,3.12033,3204.8,3204.3,0.3116]
[1731975088101,0.63413095,3205.1,3204.6,0.3116]
[1731975088322,3.12012,3205.0,3204.6,0.3116]
[1731975088909,0.63413095,3205.1,3204.6,0.3116]
[1731975089208,3.12003,3205.1,3204.6,0.3116]
[1731975090609,3.74235525,3205.3,3204.6,3.43211]
[1731975091486,3.12008,3205.1,3204.5,0.3116]
[1731975092201,3.12019,3205.0,3204.5,0.3116]
[1731975092380,3.12032,3204.8,3204.5,0.3116]
[1731975092958,3.12051,3204.6,3204.5,0.3116]
[1731975093804,0.624045,3204.8,3204.5,0.3116]
[1731975093961,3.12016,3205.0,3204.6,0.3116]
[1731975094170,2.25543525,3205.3,3204.8,0.3116]
[1731975094171,3.1201,3205.1,3204.8,0.3116]
[1731975094364,3.74226525,3205.3,3204.8,0.3116]
[1731975094603,0.31093525,3205.3,3204.7,4.67585]
[1731975094912,3.11993,3205.2,3204.8,0.3116]
[1731975095103,3.11984,3205.3,3204.8,0.3116]
[1731975095606,3.1199,3205.3,3204.8,0.3116]
[1731975095979,0.623955,3205.3,3204.8,0.3116]
[1731975096195,3.11993,3205.2,3204.8,0.3116]
[1731975096363,3.11873,3206.5,3204.7,1.5555]
[1731975096364,3.0,3205.9,3205.0,0.3116]
[1731975096563,0.6212688,3205.7,3205.2,3.4315]
[1731975096803,3.11929,3205.9,3205.4,0.3116]
[1731975097016,3.11944,3205.7,3205.4,0.3116]
[1731975097517,3.11963,3205.5,3205.4,0.3116]
[1731975097675,3.11963,3205.5,3205.1,1.5447]
[1731975097676,3.11944,3205.7,3205.2,0.3116]
[1731975098012,3.11957,3205.6,3205.2,0.3116]
[1731975098305,3.11965,3205.5,3205.2,0.3116]
[1731975098763,3.11944,3205.7,3205.1,1.5447]
[1731975098958,3.11944,3205.7,3205.2,0.3116]
[1731975099159,3.11954,3205.6,3205.2,0.3116]
[1731975099364,3.06486026,3205.6,3205.2,0.3116]
[1731975102570,3.11937,3205.8,3205.2,0.3116]
[1731975102571,3.11929,3205.9,3205.2,0.3116]
[1731975102771,3.11983,3205.3,3205.2,0.3116]
[1731975103109,3.11983,3205.3,3204.8,0.3116]
[1731975103668,3.11983,3205.3,3204.8,3.43191]
[1731975104208,3.11994,3205.2,3204.8,0.3116]
[1731975106584,3.11989,3205.3,3204.8,0.3116]
[1731975107276,3.11995,3205.2,3204.8,0.3116]
[1731975107621,3.12022,3204.9,3204.8,0.3116]
[1731975107772,4.5767,3205.3,3204.5,0.3116]
[1731975108118,3.12051,3204.6,3204.5,0.3116]
[1731975108711,3.12051,3204.6,3203.6,1.5964]
[1731975108712,4.69721,3204.6,3203.6,1.5964]
[1731975108927,4.69721,3204.6,3203.6,1.76318833]
[1731975108928,3.12139,3203.7,3203.6,1.76318833]
[1731975109093,3.12139,3203.7,3203.6,0.3116]
[1731975109811,3.12152,3203.6,3203.3,0.3116]
[1731975110048,3.12167,3203.5,3203.3,0.3116]
[1731975110203,3.12139,3203.7,3203.3,0.3116]
[1731975110593,3.12159,3203.5,3203.3,0.3116]
[1731975110793,3.12159,3203.5,3202.9,0.3116]
[1731975111037,3.12159,3203.5,3203.1,0.3116]
[1731975111337,3.12178,3203.3,3202.9,0.3116]
[1731975111834,3.12178,3203.3,3203.0,1.6321]
[1731975111997,3.12178,3203.3,3203.1,0.3116]
[1731975112913,3.12159,3203.5,3203.1,0.3116]
[1731975113110,3.12169,3203.4,3203.1,0.3116]
[1731975113810,3.12169,3203.4,3203.0,1.3212]
[1731975114012,3.12169,3203.4,3203.1,0.3116]
[1731975115538,3.1209,3204.2,3203.3,3.43331]
[1731975115693,1.5389,3204.3,3203.3,0.3116]
[1731975115694,3.1212,3203.9,3203.3,0.3116]
[1731975116443,3.1213,3203.8,3203.3,0.3116]
[1731975116823,3.1213,3203.8,3203.5,0.3116]
[1731975117196,3.12148,3203.7,3203.5,0.3116]
[1731975118049,1.6657,3203.9,3203.3,0.3116]
[1731975118338,3.12168,3203.4,3203.3,0.3116]
[1731975119147,3.12168,3203.4,3202.9,0.3116]
[1731975119326,3.12157,3203.6,3202.9,0.63910241]
[1731975119640,3.12161,3203.5,3202.9,0.701527]
[1731975119853,3.12168,3203.4,3202.9,0.63910241]
[1731975120933,3.12207,3203.0,3202.9,0.3116]
[1731975121249,3.12199,3203.1,3202.9,0.3116]
[1731975122044,3.12178,3203.3,3202.9,0.3116]
[1731975122045,3.12207,3203.0,3202.9,0.3116]
[1731975122794,1.6355,3204.1,3202.9,0.3116]
[1731975123100,3.12156,3203.6,3202.9,0.37402925]
[1731975123445,3.1216,3203.5,3202.9,0.37402925]
[1731975123814,3.34682654,3204.0,3202.9,0.3116]
[1731975123947,3.12204,3203.1,3202.9,0.3116]
[1731975124456,2.81054,3203.1,3202.8,2.96342405]
[1731975124656,3.12197,3203.2,3202.9,0.3116]
[1731975124855,3.12158,3203.5,3202.9,0.63910241]
[1731975125502,3.34677654,3204.0,3202.9,0.63910241]
[1731975125503,3.12129,3203.8,3202.9,0.63910241]
[1731975125656,3.12184,3203.3,3202.9,0.3116]
[1731975125862,3.12188,3203.2,3202.9,0.3116]
[1731975126071,3.12199,3203.1,3202.9,0.3116]
[1731975126369,3.12199,3203.1,3203.0,0.3116]
[1731975127159,3.12199,3203.1,3202.7,0.3116]
[1731975127360,3.12226,3202.8,3202.7,0.3116]
[1731975127593,4.73966,3202.8,3202.7,0.3116]
[1731975128131,1.5448,3203.6,3202.7,0.3116]
[1731975128434,1.5448,3202.7,3202.0,0.3116]
[1731975128699,3.12246,3202.6,3202.2,0.3116]
[1731975128905,3.12246,3202.6,3202.1,1.5957]
[1731975129263,3.12262,3202.5,3202.2,0.3116]
[1731975129610,3.12266,3202.4,3202.2,0.3116]
[1731975130173,3.12266,3202.4,3202.3,0.3116]
[1731975131203,1.6024,3203.1,3202.0,0.3116]
[1731975131204,1.5709,3202.5,3202.0,0.3116]
[1731975131372,3.12292,3202.2,3202.0,0.3116]
[1731975131574,3.12295,3202.1,3202.0,0.3116]
[1731975132159,3.12295,3202.1,3201.7,0.3116]
[1731975132714,3.12276,3202.3,3201.7,0.3116]
[1731975132875,4.69348,3202.5,3201.9,0.3116]
[1731975133721,3.12258,3202.5,3201.9,0.815912]
[1731975133874,3.12239,3202.7,3201.9,0.3116]
[1731975134204,3.12227,3202.8,3202.1,3.43453]
[1731975134378,3.12227,3202.8,3202.3,0.3116]
[1731975136212,3.12237,3202.7,3202.1,0.655068]
[1731975136413,3.73154754,3203.0,3202.3,0.3116]
[1731975136785,3.12235,3202.8,3202.3,0.3116]
[1731975137100,3.12255,3202.6,3202.3,0.3116]
[1731975137293,4.74125,3202.4,3202.3,0.3116]
[1731975137607,3.12371,3201.4,3200.9,0.3116]
[1731975137825,3.12371,3201.4,3200.8,1.5997]
[1731975137826,3.12382,3201.2,3200.8,1.5997]
[1731975138108,2.212253,3201.2,3200.1,3.12483]
[1731975138308,3.12441,3200.6,3200.1,4.0]
[1731975138509,1.5875,3200.5,3200.2,0.3116]
[1731975138686,3.12469,3200.4,3200.2,0.3116]
[1731975138881,3.12469,3200.4,3200.1,3.9497]
[1731975139086,3.1248,3200.2,3199.8,0.1435689]
[1731975139797,1.5875,3200.5,3199.8,0.1435689]
[1731975139965,4.71152,3201.0,3200.0,3.12491]
[1731975140169,0.6109402,3200.7,3200.1,0.312491]
[1731975140378,0.6109402,3200.7,3200.3,3.12468]
[1731975140584,0.6109402,3200.7,3200.1,3.437311]
[1731975140796,0.6109402,3200.7,3200.1,3.12488]
[1731975141612,0.6109402,3200.7,3199.8,0.1435689]
[1731975141613,4.10878622,3200.7,3199.8,3.2687389]
[1731975141819,3.12458,3200.5,3199.9,3.12507]
[1731975141970,3.12461,3200.4,3199.8,0.1435689]
[1731975142320,0.6109402,3200.7,3199.8,0.1435689]
[1731975142321,3.12492,3200.1,3199.8,0.1435689]
[1731975142471,3.12492,3200.1,3199.5,0.3116]
[1731975143206,3.12501,3200.0,3199.5,0.3116]
[1731975143721,3.12509,3199.9,3198.6,3.12633]
[1731975143945,3.12577,3199.3,3198.6,2.81423]
[1731975144110,4.62948,3199.3,3198.5,0.775]
[1731975144315,1.5038,3198.8,3198.5,0.4631]
[1731975144631,3.12627,3198.7,3198.5,0.4631]
[1731975144836,3.12595,3199.1,3198.5,0.4631]
[1731975145195,1.5038,3200.2,3198.5,0.822068]
[1731975145424,1.5038,3199.2,3198.5,3.58954]
[1731975145641,4.62926,3199.6,3198.5,0.4631]
[1731975145809,3.12546,3199.6,3198.9,3.12605]
[1731975146145,3.12546,3199.6,3198.6,1.6008]
[1731975146146,3.12521,3199.8,3199.0,3.438575]
[1731975146348,4.6288,3200.0,3199.2,3.12569]
[1731975146858,4.6288,3200.0,3199.0,3.438565]
[1731975146859,4.6288,3200.0,3199.3,3.12566]
[1731975147008,1.5038,3200.0,3199.3,3.12562]
[1731975147347,1.5038,3200.0,3199.3,3.750768]
[1731975147673,3.1252,3199.8,3199.0,0.312605]
[1731975147854,3.12546,3199.6,3198.6,4.72711]
[1731975148165,3.1256,3199.4,3198.6,1.6008]
[1731975148318,1.6662,3199.3,3198.5,0.4631]
[1731975148517,3.12585,3199.2,3198.5,0.4631]
[1731975148737,1.6662,3199.3,3198.5,0.4631]
[1731975148920,3.12636,3198.6,3198.5,0.4631]
[1731975150256,4.68646,3198.6,3198.5,0.4631]
[1731975150408,3.1271,3197.9,3196.7,0.1435689]
[1731975150613,3.12722,3197.8,3196.8,3.1281]
[1731975150952,3.1273,3197.7,3196.7,3.12813]
[1731975151136,3.12735,3197.6,3196.8,3.12803]
[1731975151338,3.12705,3197.9,3196.8,3.1281]
[1731975151659,3.12729,3197.7,3196.8,3.12808]
[1731975151816,3.12705,3197.9,3197.0,3.12792]
[1731975152012,1.5601,3198.4,3197.5,3.12739]
[1731975152225,4.68667,3198.4,3197.1,0.0625431]
[1731975152429,4.68667,3198.4,3197.6,3.12732]
[1731975153338,4.68667,3198.4,3197.7,3.12722]
[1731975153852,1.5601,3198.4,3197.3,1.5152]
[1731975154151,1.5601,3198.4,3197.0,2.96342405]
[1731975154152,3.12696,3198.0,3197.2,3.12767]
[1731975154368,1.5601,3198.4,3197.1,3.12782]
[1731975154369,2.81563,3197.9,3197.1,3.12782]
[1731975154510,0.21764634,3198.3,3197.2,0.3116]
[1731975154710,1.5098,3197.6,3196.6,2.96342405]
[1731975154911,3.12744,3197.5,3196.9,0.3116]
[1731975155337,0.776448,3197.5,3196.9,0.3116]
[1731975155526,0.776448,3197.5,3196.9,3.43961]
[1731975155953,1.5098,3197.6,3197.1,3.12782]
[1731975156121,2.14837071,3197.6,3197.1,0.3116]
[1731975156327,5.80333778,3197.6,3197.1,0.3116]
[1731975156511,2.67592778,3197.6,3197.1,0.3116]
[1731975156708,2.67592778,3197.6,3197.2,3.12772]
[1731975156709,1.5098,3197.6,3197.2,3.12772]
[1731975156914,1.6576,3198.1,3197.8,3.12714]
[1731975157158,2.29629583,3198.1,3197.5,3.12735]
[1731975157456,2.29629583,3198.1,3197.6,3.12727]
[1731975158071,1.5545,3199.3,3198.0,0.3116]
[1731975158232,0.63490672,3199.3,3198.6,0.3116]
[1731975158560,1.5545,3199.7,3198.9,3.12603]
[1731975158864,3.1258,3199.2,3198.6,3.43795]
[1731975159018,0.01,3199.5,3198.6,0.3116]
[1731975159220,3.12617,3198.8,3198.0,3.12694]
[1731975159455,1.5795,3198.9,3198.1,0.3116]
[1731975159760,4.70558,3198.9,3198.3,3.43825]
[1731975159972,1.5795,3198.9,3198.5,3.43798]
[1731975160168,1.5795,3198.9,3198.5,0.3116]
[1731975160655,1.5795,3198.9,3198.7,3.43784]
[1731975160864,1.5876,3199.3,3198.8,3.12617]
[1731975161027,1.5876,3199.3,3198.7,0.3116]
[1731975161028,4.7133,3199.3,3198.7,0.3116]
[1731975161238,3.1258,3199.2,3198.7,0.3116]
[1731975161634,4.93464992,3199.3,3198.7,0.3116]
[1731975161850,4.93464992,3199.3,3198.5,0.3116]
[1731975161851,3.12585,3199.2,3198.5,0.3116]
[1731975162061,1.5061,3199.0,3198.0,0.1616]
[1731975162213,1.5061,3199.6,3198.6,1.6203]
[1731975162415,1.5061,3200.0,3198.7,3.6030543]
[1731975162764,1.5061,3200.5,3200.0,3.12498]
[1731975163130,1.5061,3200.5,3199.8,3.12516]
[1731975163335,1.5061,3200.5,3200.2,3.1248]
[1731975163758,1.5061,3201.1,3200.5,3.1245]
[1731975163919,1.818483,3201.1,3200.6,3.1244]
[1731975164121,1.818483,3201.1,3200.7,3.12427]
[1731975164435,3.6130543,3201.9,3197.9,1.6232]
[1731975164436,0.01,3199.8,3197.9,1.6232]
[1731975164636,3.12565,3199.4,3198.0,3.12695]
[1731975164949,3.12569,3199.3,3198.3,3.1266]
[1731975165469,3.12569,3199.3,3198.4,3.12653]
[1731975165618,3.12597,3199.1,3197.9,1.6232]
[1731975165824,1.5481,3199.0,3197.9,1.6232]
[1731975166123,3.12638,3198.6,3197.7,3.12722]
[1731975166368,0.01,3198.7,3197.3,1.522]
[1731975166660,0.313607,3198.7,3197.2,3.12769]
[1731975166876,3.12686,3198.1,3197.2,3.12769]
[1731975167225,3.12696,3198.0,3197.1,3.12775]
[1731975167425,3.12696,3198.0,3197.2,3.12772]
[1731975167662,0.465506,3197.9,3197.2,3.12772]
[1731975167876,3.12746,3197.5,3196.7,3.12813]
[1731975168166,3.12706,3197.9,3196.8,3.12811]
[1731975168461,3.12709,3197.9,3196.8,3.12811]
[1731975168639,1.5381,3198.1,3196.6,3.60284087]
[1731975168837,3.12741,3197.6,3196.7,3.12822]
[1731975169146,0.312741,3197.6,3196.4,4.65049]
[1731975169350,3.12695,3198.0,3196.6,3.1283]
[1731975169547,3.12754,3197.5,3196.6,3.1283]
[1731975170120,3.12705,3197.9,3196.8,3.12812]
[1731975170325,3.12705,3197.9,3197.0,3.12786]
[1731975170721,3.12705,3197.9,3196.8,3.12812]
[1731975170722,3.12723,3197.8,3196.8,3.12804]
[1731975170930,0.312723,3197.7,3196.8,3.12804]
[1731975171130,0.312723,3197.7,3196.6,6.73114087]
[1731975171478,3.12714,3197.8,3196.9,3.12795]
[1731975172163,3.12697,3198.0,3197.2,3.12772]
[1731975172373,1.5281,3198.1,3196.6,3.60284087]
[1731975172681,1.5281,3198.1,3196.7,3.12822]
[1731975172970,1.993588,3198.1,3197.1,3.12781]
[1731975173171,1.993588,3198.1,3197.4,3.12753]
[1731975173371,5.120448,3198.1,3197.4,3.12753]
[1731975173677,1.08241549,3198.1,3197.5,3.12743]
[1731975173826,0.61692749,3198.1,3197.5,3.12743]
[1731975174026,3.74378749,3198.1,3197.3,3.12762]
[1731975174227,1.5208,3197.6,3196.7,3.12822]
[1731975174465,3.12752,3197.5,3196.8,3.12811]
[1731975174674,3.12755,3197.4,3196.5,3.12842]
[1731975174973,0.464835,3197.4,3196.5,3.12842]
[1731975175138,3.12764,3197.3,3196.6,3.12831]
[1731975175670,3.12764,3197.3,3196.4,4.65051]
[1731975175885,1.5208,3197.6,3196.9,3.12802]
[1731975176030,1.5208,3197.6,3197.1,3.12783]
[1731975176387,1.5208,3197.6,3197.0,3.12791]
[1731975176871,4.64815,3197.6,3196.8,3.12806]
[1731975177169,1.985615,3197.6,3196.9,3.12794]
[1731975177472,3.12755,3197.4,3196.8,3.12812]
[1731975178164,5.112975,3197.6,3196.4,1.522]
[1731975178378,4.76778,3198.1,3196.6,3.60284087]
[1731975178685,4.76778,3198.1,3197.3,3.12755]
[1731975178686,3.12695,3198.0,3197.3,3.12755]
[1731975179053,1.5638,3198.7,3196.9,1.6112]
[1731975179288,1.5638,3198.7,3198.4,3.12648]
[1731975179488,4.68971,3199.1,3198.4,2.81438]
[1731975179804,4.68971,3199.1,3198.2,3.12671]
[1731975179805,1.5638,3199.1,3198.2,3.12671]
[1731975179956,3.12614,3198.9,3198.2,3.12671]
[1731975180154,3.12632,3198.7,3198.1,3.12683]
[1731975180567,3.12637,3198.6,3198.0,3.12693]
[1731975180811,0.18902676,3199.0,3197.9,3.12705]
[1731975180970,3.12623,3198.8,3198.1,3.12684]
[1731975181167,3.12617,3198.8,3197.8,1.6112]
[1731975181401,0.2370992,3198.9,3197.9,3.12704]
[1731975181402,3.12638,3198.6,3197.9,3.12704]
[1731975181921,3.12622,3198.8,3198.2,3.12675]
[1731975182218,3.12627,3198.7,3198.0,3.12688]
[1731975182417,3.12653,3198.5,3197.7,3.12722]
[1731975182585,3.12656,3198.4,3197.7,3.12722]
[1731975182915,3.12648,3198.5,3197.7,3.12716]
[1731975183118,3.12666,3198.3,3197.7,3.12716]
[1731975183414,3.12666,3198.3,3197.6,3.12729]
[1731975183613,0.64892992,3198.8,3197.2,5.24984087]
[1731975183614,3.77518992,3198.8,3197.3,0.55]
[1731975183822,3.77518992,3198.8,3197.9,3.12702]
[1731975183965,0.64892992,3198.8,3197.8,3.12712]
[1731975184278,0.2370992,3198.9,3197.6,3.12731]
[1731975184279,3.12672,3198.3,3197.6,3.12731]
[1731975184624,3.12647,3198.5,3197.9,0.3116]
[1731975184769,3.3631792,3198.9,3198.1,0.3116]
[1731975184970,3.12619,3198.8,3198.1,3.43839]
[1731975185171,5.3078552,3199.1,3198.5,0.3116]
[1731975185377,1.5638,3199.1,3198.5,3.43805]
[1731975185777,4.67851,3199.5,3198.8,0.3116]
[1731975186285,4.67851,3199.5,3199.0,0.3116]
[1731975186921,3.12568,3199.3,3199.0,0.3116]
[1731975187218,3.12572,3199.3,3199.0,0.3116]
[1731975187419,3.12578,3199.2,3199.1,0.3116]
[1731975187623,1.5096,3199.1,3197.5,1.5287]
[1731975187925,3.12682,3198.2,3197.6,0.3116]
[1731975188222,3.12698,3198.0,3197.4,3.1275]
[1731975188424,3.12698,3198.0,3197.2,6.73055087]
[1731975188425,3.12699,3198.0,3197.3,3.12763]
[1731975188590,4.77169,3198.2,3197.5,3.12737]
[1731975188789,3.12687,3198.1,3197.5,3.12687]
[1731975189520,1.6449,3198.2,3197.4,3.1275]
[1731975189677,4.77166,3198.2,3197.6,0.3116]
[1731975189874,2.434723,3198.2,3197.7,0.3116]
[1731975190196,3.12682,3198.2,3197.7,0.3116]
[1731975190396,3.12649,3198.5,3197.7,0.3116]
[1731975190633,1.523,3198.6,3198.0,0.3116]
[1731975190785,4.64885,3199.2,3198.5,0.3116]
[1731975190983,3.12587,3199.1,3198.5,0.3116]
[1731975191177,0.464887,3199.0,3198.5,0.3116]
[1731975191507,3.12636,3198.6,3198.5,0.3116]
[1731975192020,3.12656,3198.4,3197.9,0.3116]
[1731975192728,3.12636,3198.6,3197.9,0.3116]
[1731975192951,3.12618,3198.8,3198.2,3.43829]
[1731975193156,0.61964254,3199.0,3198.5,3.43799]
[1731975193368,3.74564254,3199.0,3198.5,0.3116]
[1731975193578,1.523,3199.2,3198.7,0.3116]
[1731975193855,1.523,3199.2,3198.7,3.43785]
[1731975194540,1.2115,3199.2,3198.7,3.43785]
[1731975194928,3.12607,3198.9,3198.8,0.3116]
[1731975195249,3.12648,3198.5,3198.0,0.3116]
[1731975195422,3.12666,3198.3,3198.0,0.3116]
[1731975195756,1.70737715,3199.2,3198.0,0.3116]
[1731975195909,1.70737715,3199.2,3197.6,3.60284087]
[1731975195910,3.12603,3199.0,3198.4,3.43808]
[1731975196108,4.33728,3199.2,3198.6,0.3116]
[1731975196321,4.33728,3199.2,3198.6,3.43796]
[1731975196577,5.14572615,3199.2,3198.6,0.3116]
[1731975196741,3.12607,3199.0,3198.6,0.3116]
[1731975196939,0.01,3198.9,3196.8,1.6576]
[1731975197155,3.12695,3198.0,3197.3,3.12757]
[1731975197452,3.12686,3198.1,3197.4,3.12752]
[1731975197625,3.12686,3198.1,3197.5,3.12743]
[1731975198019,3.12686,3198.1,3197.6,0.3116]
[1731975198236,3.12695,3198.0,3197.7,0.3116]
[1731975198458,1.6447,3198.2,3197.7,0.3116]
[1731975198749,3.127,3198.0,3197.7,0.3116]
[1731975199120,3.29126,3198.2,3197.4,0.3116]
[1731975199325,3.12679,3198.2,3197.6,0.3116]
[1731975200311,3.752127,3198.2,3197.6,0.3116]
[1731975200512,3.12716,3197.8,3197.2,0.3116]
[1731975200948,3.12749,3197.5,3197.2,0.3116]
[1731975201155,3.12742,3197.6,3197.2,0.3116]
[1731975201319,4.77162,3198.1,3196.8,3.60284087]
[1731975201530,0.62847493,3198.2,3197.8,0.3116]
[1731975204320,0.62847493,3198.2,3197.8,3.4387]
[1731975204655,0.31697493,3198.2,3197.9,0.3116]
[1731975205714,3.12633,3198.7,3198.2,0.3116]
[1731975207220,3.12637,3198.6,3198.3,0.3116]
[1731975207432,3.12623,3198.8,3198.3,0.3116]
[1731975208060,3.12629,3198.7,3198.3,0.3116]
[1731975208362,3.12629,3198.7,3198.1,0.3116]
[1731975208535,3.12629,3198.7,3198.1,3.43844]
[1731975209219,4.79221,3198.9,3198.1,3.43844]
[1731975209426,4.79221,3198.9,3198.3,0.3116]
[1731975209757,3.75453717,3199.1,3198.5,0.3116]
[1731975209945,0.62862717,3199.1,3198.5,0.3116]
[1731975210144,3.1255,3199.5,3198.9,0.3116]
[1731975210390,3.1255,3199.5,3198.9,3.4376]
[1731975210391,3.43805,3199.5,3198.9,3.4376]
[1731975211033,3.12636,3198.6,3198.5,0.3116]
[1731975211239,3.12699,3198.0,3197.8,0.3116]
[1731975211438,3.12699,3198.0,3197.3,5.11724087]
[1731975211628,4.71708,3198.4,3197.4,0.03721533]
[1731975211829,3.12648,3198.5,3197.8,3.12714]
[1731975212068,3.12648,3198.5,3197.8,0.3116]
[1731975212763,1.5905,3198.9,3197.8,0.3116]
[1731975212764,3.12662,3198.4,3197.8,0.3116]
[1731975212975,6.565902,3198.4,3197.8,0.3116]
[1731975213126,3.12666,3198.3,3197.8,0.3116]
[1731975214224,3.76245674,3198.8,3198.0,0.3116]
[1731975214566,3.12644,3198.6,3198.0,0.3116]
[1731975214771,3.50270967,3198.6,3198.0,0.3116]
[1731975215065,3.50270967,3198.6,3198.0,5.02334]
[1731975215264,3.76244674,3198.8,3198.0,5.02334]
[1731975215265,3.76244674,3198.8,3198.2,0.3116]
[1731975215481,3.76244674,3198.8,3198.4,0.3116]
[1731975216039,3.12422,3200.8,3200.2,0.3116]
[1731975216238,3.12394,3201.1,3200.4,0.3116]
[1731975216442,3.12373,3201.3,3200.2,6.72763087]
[1731975216443,4.70805,3201.6,3200.6,3.436]
[1731975216651,3.12371,3201.4,3200.8,0.3116]
[1731975216850,3.12381,3201.3,3200.8,0.3116]
[1731975217100,3.12356,3201.5,3200.8,0.3116]
[1731975217389,3.12336,3201.7,3201.0,0.3116]
[1731975217554,3.74671929,3201.9,3201.0,0.3116]
[1731975217738,0.37467193,3201.8,3201.2,0.3116]
[1731975217939,4.74875,3202.1,3201.2,0.3116]
[1731975217940,3.12295,3202.1,3201.6,0.3116]
[1731975218251,3.12274,3202.4,3201.9,0.3116]
[1731975218444,3.12257,3202.5,3201.9,0.3116]
[1731975218769,3.12222,3202.9,3202.1,3.12293]
[1731975218970,4.77507,3203.5,3202.2,0.3116]
[1731975219176,3.13127,3203.9,3202.5,0.3116]
[1731975219177,3.12195,3203.2,3202.5,0.3116]
[1731975219491,3.12198,3203.1,3202.4,3.12256]
[1731975219670,3.12168,3203.4,3202.6,3.12237]
[1731975219876,3.12192,3203.2,3202.6,3.60284087]
[1731975220064,3.12173,3203.4,3202.6,6.72530087]
[1731975221083,3.12173,3203.4,3202.0,1.35154917]
[1731975221084,0.1966527,3203.7,3201.8,5.20024087]
[1731975221243,1.6044,3203.4,3201.8,5.20024087]
[1731975221448,3.12278,3202.3,3201.8,5.20024087]
[1731975221679,3.435058,3202.3,3201.8,5.20024087]
[1731975222261,3.435058,3202.3,3201.8,1.5974]
[1731975222686,0.312278,3202.3,3201.8,1.5974]
[1731975222889,3.12284,3202.3,3201.8,1.5974]
[1731975223071,3.55,3203.0,3201.2,1.5693]
[1731975223280,3.12325,3201.8,3201.2,1.5693]
[1731975223743,3.12309,3202.0,3201.2,1.5693]
[1731975223949,0.624609,3201.9,3201.2,4.69312]
[1731975224381,3.12329,3201.8,3201.2,1.5693]
[1731975224948,3.12373,3201.3,3200.5,1.5693]
[1731975225187,3.12354,3201.5,3200.5,1.5693]
[1731975225397,1.5938,3201.9,3200.5,1.5693]
[1731975225604,3.12357,3201.5,3200.7,3.1243]
[1731975225748,3.12366,3201.4,3200.7,3.1243]
[1731975225944,3.12373,3201.3,3200.5,4.69377]
[1731975226150,3.12411,3201.0,3200.5,1.5693]
[1731975226388,3.436203,3201.2,3200.5,1.5693]